[Event "XV American Continental 2022"]
[Site "San Salvador"]
[Date "2022.05.08"]
[Round "9.3"]
[White "Morovic Fernandez, Ivan"]
[Black "Pichot, Alan"]
[Result "1/2-1/2"]
[ECO "B47"]
[WhiteElo "2495"]
[BlackElo "2652"]
[Annotator "TA"]
[PlyCount "163"]
[EventDate "2022.05.02"]
[EventCountry "ESA"]
[SourceTitle "playchess.com"]
[Source "ChessBase"]
[SourceQuality "1"]
[TimeControl "40/5400+30:1800+30"]

{[%evp 26,163,4,4,16,13,12,-18,-14,-19,66,50,57,26,22,0,0,0,44,-32,-28,-27,-20,-86,0,0,0,0,0,0,0,3,14,9,20,0,0,0,0,0,0,0,0,-104,-91,-90,-98,-111,-90,-104,-122,-189,-196,-187,-183,-192,-195,-180,-168,-209,-216,-255,-201,-286,-269,-447,-291,-303,-314,-306,-289,-283,-206,-197,-182,-217,-214,-217,-220,-213,-145,-145,-145,-145,-145,-158,-145,-146,-178,-853,-837,-746,-741,-1166,-1099,-1270,-1299,-970,-1164,-1029,-954,-1322,-1312,-1210,-1056,-1297,-1271,-1158,-1065,-902,-799,-1856,-1748,-1653,-1630,-1258,-1069,-789,-631,-610,-587,-595,-8,-8,-8,-8,-8,-8,-8,-8,-8,-8,-8,-8,-8,-8,-8,-8,-8,-8]} 1. e4 {[%emt 0:00:20]} c5 {[%emt 0:00:21]} 2. Nf3 {[%emt 0:00:07]} Nc6 {[%emt 0:00:23]} 3. d4 {[%emt 0:00:34]} cxd4 {[%emt 0:00:06]} 4. Nxd4 {[%emt 0:00:03]} e6 {[%emt 0:00:22]} 5. Nc3 {[%emt 0:02:03]} Qc7 {[%emt 0:00:17]} 6. Be2 {[%emt 0:00:50]} Nf6 {[%emt 0:00:37]} 7. a3 {[%emt 0:05:09]} Be7 {[%emt 0:03:06]} 8. Be3 {[%emt 0:02:47]} O-O {[%emt 0:01:37]} 9. O-O {[%emt 0:02:21]} d6 {[%emt 0:01:38]} 10. Kh1 {[%emt 0:04:45]} a6 {[%emt 0:05:36]} 11. f4 {[%emt 0:02:13]} Nxd4 {[%emt 0:00:57]} 12. Bxd4 {[%emt 0:00:28]} b5 {[%emt 0:01:41]} 13. Qe1 {[%emt 0:07:13]} Bb7 {[%emt 0:01:11]} 14. Qg3 {[%emt 0:00:25]} Ne8 {[%emt 0:01:37] B85: Sicilian Scheveningen: 6 Be2 a6, lines with early Be3.} 15. Bd3 {[%emt 0:05:25]} Bf6 {[%emt 0:09:44]} 16. Bxf6 {[%emt 0:21:01]} (16. e5 {is more complex.} dxe5 17. fxe5 Rd8 18. Bb6) 16... Nxf6 {[%emt 0:00:08]} 17. Rae1 {[%emt 0:02:03] [#]} Nh5 $146 {[%emt 0:05:50]} (17... Nd7 $11) ({Predecessor:} 17... Rac8 18. Qh4 h6 19. Re3 Qc5 20. Rg3 Kh8 21. Rg5 Qd4 22. e5 dxe5 23. Ne2 Qxb2 24. fxe5 {1-0 (48) Inarkiev,E (2694)-Rublevsky,S (2683) Sochi 2017}) 18. Qh4 $1 $14 {[%emt 0:01:37]} g6 {[%emt 0:00:35]} 19. g4 {[%emt 0:08:43]} (19. f5 {is interesting.} exf5 20. exf5 Rae8 21. Be2) 19... Ng7 {[%emt 0:00:48]} 20. f5 {[%emt 0:01:32]} (20. Rf3 $5 {[%cal Rf3h3]}) 20... exf5 {[%emt 0:07:21]} 21. gxf5 {[%emt 0:00:06]} Rfe8 {[%emt 0:06:27]} (21... Nxf5 $2 22. Rxf5 $1 {[%mdl 512]} Rae8 23. Nd5 $1 Bxd5 24. Rxd5 $18) 22. Nd5 {[%emt 0:13:21]} (22. Re3 $14 Nh5 23. Be2) 22... Bxd5 $15 {[%emt 0:00:28]} 23. exd5 {[%emt 0:00:02]} Qc5 {[%emt 0:03:42]} 24. f6 {[%emt 0:15:10]} (24. fxg6 $11 hxg6 25. Qf4) 24... Nh5 {[%emt 0:01:07]} (24... Rxe1 $17 25. Rxe1 Nh5) 25. b4 $11 {[%emt 0:02:07]} Qc3 {[%emt 0:03:53]} ({Don't play} 25... Qxd5+ 26. Be4 Qa2 27. Bxa8 Rxa8 28. Qe4 $16) 26. Re6 {[%emt 0:00:19]} fxe6 {[%emt 0:37:02]} 27. f7+ {[%emt 0:00:02]} Kh8 {[%emt 0:01:32] aiming for ...Rf8.} 28. fxe8=Q+ {[%emt 0:00:23]} Rxe8 {[%emt 0:00:01]} 29. dxe6 {[%emt 0:00:27]} Qe5 {[%emt 0:01:40]} 30. Re1 {[%emt 0:01:28]} Qd5+ {[%emt 0:00:05]} 31. Kg1 {[%emt 0:00:30]} Kg7 {[%emt 0:00:37]} 32. e7 {[%emt 0:00:37]} Nf6 $1 {[%emt 0:00:18][%cal Bh5f6,Bf6d7,Bd7e5,Be5c4][%mdl 32]} 33. Qf4 {[%emt 0:00:56]} Nd7 {[%emt 0:01:11]} 34. Qe3 {[%emt 0:01:05]} (34. a4 $11 {remains equal.}) 34... Ne5 $17 {[%emt 0:00:27]} 35. Be4 {[%emt 0:00:19] Inhibits Nf3+.} Qe6 {[%emt 0:00:21]} 36. Bg2 {[%emt 0:00:45]} Rxe7 {[%emt 0:00:13][%cal Oe5f3] Threatens to win with ...Nf3+!} 37. Rd1 {[%emt 0:00:37]} Qf6 {[%emt 0:03:19]} 38. Qg3 {[%emt 0:00:55]} (38. Qc3 $17 {is a better defense.}) 38... Nc4 $1 $19 {[%emt 0:00:18]} 39. Rf1 {[%emt 0:00:30]} Qd4+ {[%emt 0:00:52]} 40. Kh1 {[%emt 0:00:09]} Ne3 {[%emt 0:01:28]} 41. Qf2 {[%emt 0:31:00][%csl Gf1][%cal Rf2f8]} Nf5 {[%emt 0:02:32] ...Qxf2 is the strong threat.} 42. Qf3 {[%emt 0:00:00]} Qe3 {[%emt 0:07:29]} 43. Rd1 {[%emt 0:00:00]} h5 {[%emt 0:02:43]} 44. Ra1 {[%emt 0:00:00]} (44. Rg1 {keeps fighting.}) 44... Qd2 {[%emt 0:01:38] Hoping for ...Nh4.} 45. Bh3 $2 {[%emt 0:01:27]} (45. Qd3 Re1+ 46. Rxe1 Qxe1+ 47. Qf1) 45... Nd4 {[%emt 0:01:50]} 46. Qd3 {[%emt 0:00:30]} Qxd3 {[%emt 0:03:50]} 47. cxd3 {[%emt 0:00:03][%mdl 4096] Endgame KRB-KRN} Re2 {[%emt 0:00:06]} 48. Bg2 {[%emt 0:00:33]} Nc2 {[%emt 0:01:03]} 49. Rg1 {[%emt 0:00:00]} Kf6 {[%emt 0:03:49]} (49... Nxa3 50. Be4 $17) 50. Bb7 {[%emt 0:00:39]} Nd4 {[%emt 0:02:09]} 51. Rf1+ {[%emt 0:00:22]} Ke5 {[%emt 0:00:01]} 52. Rg1 {[%emt 0:00:51]} d5 {[%emt 0:06:52]} 53. Rg5+ {[%emt 0:00:11] [#]} Kf6 $1 {[%emt 0:00:05]} 54. Rg2 {[%emt 0:01:05]} ({Not} 54. Rxd5 $2 Nf3 55. Rd6+ Ke7 56. Bxf3 Re1+ 57. Kg2 Kxd6 $19) 54... Rxg2 {[%emt 0:00:24]} 55. Kxg2 $17 {[%emt 0:00:04] KB-KN} Nc2 {[%emt 0:00:04]} 56. Bxa6 {[%emt 0:01:05]} Nxa3 {[%emt 0:00:04]} 57. d4 $2 {[%emt 0:00:54] [#]} (57. Kg3) 57... Kf5 $1 $19 {[%emt 0:00:49] And now ...Ke4 would win.} ({Weaker is} 57... Nc2 58. Bxb5 Nxb4 59. Ba4 $17) 58. Kf3 {[%emt 0:00:37]} Nc2 $1 {[%emt 0:00:08][%csl LRb4,LRd4]} 59. Ke2 {[%emt 0:00:36]} Ke4 {[%emt 0:00:21]} 60. h4 {[%emt 0:00:33]} Nxd4+ {[%emt 0:00:42]} 61. Kd2 {[%emt 0:00:11]} Nf3+ {[%emt 0:02:34]} 62. Ke2 {[%emt 0:00:09]} Kf4 {[%emt 0:02:00]} 63. Kd3 {[%emt 0:00:44]} Nxh4 {[%emt 0:00:33]} 64. Bxb5 {[%emt 0:00:02]} Nf3 {[%emt 0:00:38]} 65. Be8 {[%emt 0:00:31]} h4 {[%emt 0:00:36]} 66. b5 {[%emt 0:00:13]} h3 {[%emt 0:00:59]} 67. b6 {[%emt 0:00:06]} Ne5+ {[%emt 0:00:19]} 68. Kd4 {[%emt 0:00:38]} h2 {[%emt 0:00:39]} 69. b7 {[%emt 0:00:03]} h1=Q {[%emt 0:00:09]} 70. b8=Q {[%emt 0:00:02] KQB-KQN} Qe4+ {[%emt 0:00:28]} 71. Kc5 {[%emt 0:00:03]} Qc4+ {[%emt 0:00:47]} 72. Kd6 {[%emt 0:00:41]} d4 {[%emt 0:00:12] Strongly threatening ...d3.} 73. Qd8 {[%emt 0:01:01]} Qc6+ $2 {[%emt 0:00:33]} 74. Bxc6 $11 {[%emt 0:00:30] White threatens Qf6+ and mate. The position is equal.} Nf7+ {[%emt 0:00:01]} 75. Kd5 $1 {[%emt 0:00:42] White wants to mate with Qh4+.} Nxd8 {[%emt 0:00:01] KB-KN} 76. Be8 {[%emt 0:00:14]} g5 {[%emt 0:01:48]} (76... d3 {seems wilder.} 77. Bxg6 d2 78. Bh5 Ke3) 77. Kxd4 {[%emt 0:00:12]} g4 {[%emt 0:00:01] ( -> ...g3)} 78. Kd3 {[%emt 0:00:39]} Ne6 {[%emt 0:01:01]} (78... g3 $5 79. Ke2 Kg4 80. Bd7+ Kg5 $11) 79. Ke2 {[%emt 0:00:37]} Kg3 {[%emt 0:00:26]} 80. Bd7 {[%emt 0:00:57]} Nc5 {[%emt 0:00:18]} 81. Bxg4 {[%emt 0:00:07]} Kxg4 82. Ke3 {And White is the lucky defender.  Weighted Error Value: White=0.50/Black=0.15 (very precise)} 1/2-1/2

[Event "XV American Continental 2022"]
[Site "San Salvador"]
[Date "2022.05.08"]
[Round "9.4"]
[White "Mekhitarian, Krikor Sevag"]
[Black "Hungaski, Robert"]
[Result "0-1"]
[ECO "D27"]
[WhiteElo "2569"]
[BlackElo "2521"]
[Annotator "TA"]
[PlyCount "74"]
[EventDate "2022.05.02"]
[EventCountry "ESA"]
[SourceTitle "playchess.com"]
[Source "ChessBase"]
[SourceQuality "1"]
[TimeControl "40/5400+30:1800+30"]

{[%evp 11,74,17,31,23,14,18,22,24,39,22,30,0,26,0,13,0,0,-2,-29,-16,0,-16,-6,-47,-11,-83,-83,-76,-88,-93,-81,-81,-68,-69,-38,-40,-27,-93,-84,-85,-60,-52,-69,-104,-61,-91,-95,-161,-164,-210,-172,-223,-204,-197,-210,-604,-579,-617,-614,-602,-579,-849,-834,-1445,-1393]} 1. d4 {[%emt 0:01:13]} d5 {[%emt 0:02:11]} 2. c4 {[%emt 0:00:05]} dxc4 {[%emt 0:00:05]} 3. Nf3 {[%emt 0:00:13]} Nf6 {[%emt 0:00:07]} 4. e3 {[%emt 0:00:13]} e6 {[%emt 0:00:06]} 5. Bxc4 {[%emt 0:00:07]} c5 {[%emt 0:00:11]} 6. O-O {[%emt 0:00:46]} a6 {[%emt 0:00:05]} 7. Be2 {[%emt 0:00:13] D27: Queen's Gambit Accepted: Classical main line: 7 e4!? and 7 a4.} Nbd7 {[%emt 0:00:42]} 8. b3 {[%emt 0:05:06]} b6 {[%emt 0:01:29]} 9. Ne5 {[%emt 0:00:02] The position is equal.} Bb7 {[%emt 0:03:56]} 10. Bf3 {[%emt 0:00:01]} Qc7 {[%emt 0:04:12]} 11. Bb2 {[%emt 0:05:23]} Rd8 {[%emt 0:08:44][%cal Ba8d8,Bd8d7,Bd7d2,Bd2b2][%mdl 32] [#]} 12. Qe2 $146 {[%emt 0:31:38]} ({Predecessor:} 12. Bxb7 Qxb7 13. Qe2 Nxe5 14. dxe5 Nd5 15. Nd2 Be7 16. Ne4 O-O 17. Rfd1 Rd7 18. Qg4 {1-0 (47) Ding,L (2799)-Aronian,L (2782) Chess.com INT 2021}) 12... Be7 {[%emt 0:00:07]} 13. Nd2 {[%emt 0:08:14][%cal Od4c5]} O-O {[%emt 0:00:46]} 14. Rac1 {[%emt 0:03:29]} Nxe5 {[%emt 0:04:56]} 15. dxe5 {[%emt 0:00:55]} Nd5 {[%emt 0:03:39]} 16. a3 {[%emt 0:06:12] Prevents Nb4.} Rd7 {[%emt 0:04:00]} 17. b4 {[%emt 0:03:21]} Qd8 {[%emt 0:02:16][%cal Od5f4] Strongly threatening ...Nf4!} (17... Bc6 $5 {[%cal Rc6b5]} 18. bxc5 bxc5 $15) 18. bxc5 {[%emt 0:18:49] [#]} (18. Ne4 $11) 18... Nf4 $1 $17 {[%emt 0:10:52]} 19. Qc4 {[%emt 0:00:30]} (19. exf4 $2 Rxd2 20. Qe3 Bxf3 21. Qxf3 Rxb2 $19) 19... Rxd2 {[%emt 0:00:29]} 20. c6 {[%emt 0:02:48] [#]} Bxc6 {[%emt 0:14:49]} 21. Qxc6 {[%emt 0:00:14] And now Bc3 would win.} Rxb2 {[%emt 0:06:50]} 22. exf4 {[%emt 0:03:05]} Bc5 {[%emt 0:00:30]} 23. Rcd1 {[%emt 0:01:11] Inhibits Qd2.} Rd2 {[%emt 0:04:12][%cal Oc5f2]} 24. Qa4 {[%emt 0:01:43]} (24. Be2 $11 {keeps the balance.}) 24... a5 {[%emt 0:02:09]} 25. g3 {[%emt 0:05:10]} Qd3 {[%emt 0:03:43][%csl LRa3,LRf3]} 26. Rxd2 {[%emt 0:00:18]} Qxd2 {[%emt 0:00:05]} 27. Kg2 {[%emt 0:01:59]} g6 {[%emt 0:04:34]} 28. Qb5 {[%emt 0:00:22]} Rd8 {[%emt 0:01:57][%cal Bf8d8,Bd8d2,Bd2f2,Bf2e2,Be2g2][%mdl 32]} 29. a4 {[%emt 0:00:30]} (29. Qb1 $17) 29... Qc2 $19 {[%emt 0:02:38]} 30. Qc6 {[%emt 0:00:45]} (30. Kh3 $142) 30... Rd2 {[%emt 0:00:54]} 31. Kh3 {[%emt 0:00:23]} (31. Qe4 {was necessary.}) 31... Kg7 {[%emt 0:01:03] Active counter play!} (31... Rxf2 32. Rxf2 Qxf2 33. Bg2 $15) (31... Bxf2 32. Qxc2 Rxc2 33. Bd1 $17) 32. Qe4 {[%emt 0:00:29]} Qa2 {[%emt 0:00:31]} ({Stronger than} 32... Rxf2 33. Rxf2 Qxf2 34. Qe2 $15) ({Inferior is} 32... Bxf2 33. Qxc2 Rxc2 34. Be4 $17) 33. Rd1 $2 {[%emt 0:00:33]} (33. Re1) 33... Rxf2 {[%emt 0:01:50] Black is clearly winning.} 34. Bg2 {[%emt 0:00:00]} Re2 {[%emt 0:01:11]} 35. Qf3 Qc2 {[%emt 0:01:09]} 36. Rc1 {[%emt 0:01:36]} Qd2 {[%emt 0:03:00] Hoping for ...Rxg2.} ({Not} 36... Qxc1 37. Qxe2 Be7 38. Bf3 $15) 37. Rc3 {[%emt 0:00:36] [#]} Rxg2 $1 {[%mdl 512] Weighted Error Value: White=0.56/Black=0.10 (very precise)} 0-1

[Event "XV American Continental 2022"]
[Site "San Salvador"]
[Date "2022.05.08"]
[Round "9.5"]
[White "Yoo, Christopher Woojin"]
[Black "Proudian, Armen"]
[Result "1/2-1/2"]
[ECO "C45"]
[WhiteElo "2535"]
[BlackElo "2418"]
[Annotator "TA"]
[PlyCount "115"]
[EventDate "2022.05.02"]
[EventCountry "ESA"]
[SourceTitle "playchess.com"]
[Source "ChessBase"]
[SourceQuality "1"]
[TimeControl "40/5400+30:1800+30"]

{[%evp 11,115,0,17,0,20,20,17,20,13,11,8,8,12,13,5,4,9,4,6,9,4,7,4,0,0,0,0,0,4,4,0,0,1,0,7,0,0,0,0,0,5,4,7,0,0,0,0,0,0,0,0,0,0,0,81,70,70,70,70,70,70,0,0,0,0,0,0,0,0,0,0,0,0,0,0,0,0,0,0,-8,0,0,0,0,0,-1081,-1070,-1003,-1045,-1002,-1009,-773,-637,-744,0,0,0,0,0,0,0,0,0,0,0,0]} 1. e4 {[%emt 0:00:03]} e5 {[%emt 0:00:27]} 2. Nf3 {[%emt 0:00:04]} Nc6 {[%emt 0:00:32]} 3. d4 {[%emt 0:00:05]} exd4 {[%emt 0:00:38]} 4. Nxd4 {[%emt 0:00:07]} Bc5 {[%emt 0:01:09]} 5. Nb3 {[%emt 0:00:06]} Bb6 {[%emt 0:01:32]} 6. Nc3 {[%emt 0:00:13]} Nf6 {[%emt 0:00:45]} 7. Qe2 {[%emt 0:00:10] C45: Scotch Game.} a5 {[%emt 0:02:08]} 8. a4 {[%emt 0:14:28]} O-O {[%emt 0:02:41]} 9. Be3 $1 {[%emt 0:04:55]} Bxe3 {[%emt 0:03:22]} 10. Qxe3 {[%emt 0:00:04]} Nb4 {[%emt 0:03:01]} 11. O-O-O {[%emt 0:01:13]} d5 {[%emt 0:01:11]} 12. exd5 {[%emt 0:05:26]} Bf5 {[%emt 0:00:47]} 13. Nd4 {[%emt 0:00:40]} Nbxd5 {[%emt 0:06:16]} 14. Nxf5 {[%emt 0:11:56]} Nxe3 {[%emt 0:00:27]} 15. Rxd8 {[%emt 0:00:03]} Nxf5 {[%emt 0:00:17]} 16. Rxa8 {[%emt 0:01:17]} Rxa8 {[%emt 0:00:10]} 17. Bd3 {[%emt 0:00:14]} Nd6 {[%emt 0:02:46]} 18. Re1 {[%emt 0:00:47] [#]} Re8 $146 {[%emt 0:01:56]} ({Predecessor:} 18... Kf8 19. f3 Rd8 20. Re5 b6 21. Nb5 Re8 22. Rxe8+ Ndxe8 23. Kd2 Ke7 24. Ke3 Nd5+ {½-½ (40) Kopylov,D (2244)-Engel,L (2421) Willingen 2018}) 19. Rxe8+ {[%emt 0:00:26]} Ndxe8 $11 {[%emt 0:00:59][%mdl 4096] Endgame KBN-KNN} 20. Kd2 {[%emt 0:02:02]} Kf8 {[%emt 0:00:48]} 21. f3 {[%emt 0:01:06]} Ke7 {[%emt 0:01:26]} 22. Ke3 {[%emt 0:01:56]} c6 {[%emt 0:16:39]} 23. h4 {[%emt 0:04:45]} Nc7 {[%emt 0:02:46]} 24. Bc4 {[%emt 0:01:23]} Ne6 {[%emt 0:07:56]} 25. g4 {[%emt 0:03:41]} h6 {[%emt 0:01:38]} 26. Ne2 {[%emt 0:07:21]} g6 {[%emt 0:12:41]} 27. Ng3 {[%emt 0:09:15]} Nd5+ {[%emt 0:10:47]} 28. Bxd5 {[%emt 0:01:22]} cxd5 {[%emt 0:00:11] KN-KN} 29. b3 {[%emt 0:09:09]} Kd6 {[%emt 0:00:44]} 30. Ne2 {[%emt 0:01:07]} g5 {[%emt 0:05:16]} 31. h5 {[%emt 0:06:12]} Ke5 {[%emt 0:02:18] Inhibits Nd4.} 32. Ng3 {[%emt 0:03:37] Hoping for Nf5.} Nd4 {[%emt 0:03:42] [#] Prevents Nf5.} (32... Ng7 $11) 33. c3 $1 $16 {[%emt 0:03:18]} Nxb3 {[%emt 0:00:17][%cal Ob7b5] ...b5! is the strong threat.} 34. Nf5 {[%emt 0:00:02]} Nc5 {[%emt 0:03:14]} 35. Nxh6 {[%emt 0:00:15]} Kf6 {[%emt 0:00:24]} 36. Ng8+ {[%emt 0:01:57]} (36. Nf5 $1 $14) 36... Kg7 $11 {[%emt 0:00:32]} 37. Ne7 {[%emt 0:00:02]} Nxa4 {[%emt 0:00:26]} 38. Nxd5 {[%emt 0:00:49]} Nb2 {[%emt 0:02:19]} 39. Kd4 {[%emt 0:02:24]} a4 {[%emt 0:00:58]} 40. c4 {[%emt 0:00:34] [#] Threatens to win with Ne3.} a3 {[%emt 0:01:42] aiming for ...a2.} 41. Nb4 {[%emt 0:31:30]} Nd1 {[%emt 0:32:11]} 42. c5 {[%emt 0:01:32]} Kh6 {[%emt 0:00:00]} 43. Kd3 {[%emt 0:00:00]} f5 {[%emt 0:00:00]} 44. gxf5 {[%emt 0:00:00]} Kxh5 {[%emt 0:00:00]} 45. Kd4 {[%emt 0:00:00]} Nb2 {[%emt 0:00:00]} 46. Kd5 {[%emt 0:00:00]} Nd3 {[%emt 0:00:00]} 47. Na2 {[%emt 0:00:00]} ({Don't go for} 47. Nxd3 $2 a2 48. Ne5 a1=Q $19) 47... Kh6 {[%emt 0:00:00] White must now prevent ...Ne1.} (47... Ne1 $5 48. f6 Kg6 $11) 48. Kd4 $2 {[%emt 0:00:00][%mdl 8192]} (48. Kd6 $11) 48... Ne1 $19 {[%emt 0:00:00]} 49. Ke4 {[%emt 0:00:00]} Kg7 {[%emt 0:00:00]} 50. Nb4 {[%emt 0:00:18]} Kf7 {[%emt 0:00:00]} 51. Na2 {[%emt 0:01:06]} Kf6 {[%emt 0:00:00]} 52. Nc3 {[%emt 0:02:10]} Nxf3 $2 {[%emt 0:00:00]} 53. Kxf3 $11 {[%emt 0:00:06] White wants to mate with Kg4. The position is equal.} Kxf5 $19 {[%emt 0:00:00] KN-K3P} 54. Na2 {[%emt 0:00:10]} Ke5 {[%emt 0:00:00]} 55. Nb4 {[%emt 0:00:04]} Kd4 {[%emt 0:00:26]} 56. Nc2+ {[%emt 0:00:33]} Kxc5 {[%emt 0:00:12] ( -> ...a2)} 57. Nxa3 {[%emt 0:00:02]} b5 {[%emt 0:01:26]} 58. Nxb5 {[%emt 0:00:05] White happily takes the draw.  Weighted Error Value: White=0.20 (precise) /Black=0.13 (very precise)} 1/2-1/2

[Event "XV American Continental 2022"]
[Site "San Salvador"]
[Date "2022.05.08"]
[Round "9.6"]
[White "Morales, Carlos"]
[Black "Salinas Herrera, Pablo"]
[Result "0-1"]
[ECO "A13"]
[WhiteElo "2005"]
[BlackElo "2534"]
[Annotator "TA"]
[PlyCount "140"]
[EventDate "2022.05.02"]
[EventCountry "ESA"]
[SourceTitle "playchess.com"]
[Source "ChessBase"]
[SourceQuality "1"]
[TimeControl "40/5400+30:1800+30"]

{[%evp 9,140,-5,0,0,0,0,0,0,0,0,0,0,0,-4,16,0,0,0,3,0,12,0,10,0,0,-12,-12,-11,-14,-31,-26,-19,-33,-26,-33,-25,-25,-25,-20,-22,-28,-30,-20,-33,-28,-93,-94,-207,-176,-154,-31,-31,0,0,0,0,0,0,0,0,0,0,18,0,0,0,0,0,0,0,0,-63,-55,-100,-8,-8,-8,-8,-8,-8,-8,-155,-85,-79,-35,-27,0,0,0,0,0,0,0,0,0,0,0,0,0,0,-6,-8,-9,-9,-8,-15,0,0,0,-8,-8,-92,-8,-8,0,-8,0,0,0,-8,-8,-8,-8,-10,-18,-18,-18,-29960,-11189,-29967,-29971,-29966,-1173]} 1. c4 {[%emt 0:02:30]} e6 {[%emt 0:01:11]} 2. Nf3 {[%emt 0:00:12]} d5 {[%emt 0:00:05]} 3. g3 {[%emt 0:00:04]} dxc4 {[%emt 0:00:07]} 4. Qa4+ {[%emt 0:00:25]} Nd7 {[%emt 0:00:35]} 5. Qxc4 {[%emt 0:00:41]} b6 {[%emt 0:00:10]} 6. Bg2 {[%emt 0:00:26] A13: English Opening: 1...e6.} Bb7 {[%emt 0:00:05]} 7. O-O {[%emt 0:00:15]} Ngf6 {[%emt 0:00:25][%cal Bg8f6,Bf6e8,Be8d6,Bd6f5][%mdl 32]} 8. d3 {[%emt 0:00:17] The position is equal.} c5 {[%emt 0:01:07]} 9. Nbd2 {[%emt 0:02:16]} Be7 {[%emt 0:01:05]} 10. b3 {[%emt 0:02:54]} O-O {[%emt 0:00:15]} 11. Bb2 {[%emt 0:00:52] [#]} Ne8 $146 ({Predecessor:} 11... Nd5 12. Ne4 Qc7 13. a3 Rac8 14. Rfc1 Qb8 15. Rab1 h6 16. Ba1 Rfd8 17. Qc2 a5 {½-½ (38) Wagner,D (2543)-Efimenko,Z (2651) Germany 2016}) 12. Qc2 {[%emt 0:04:25]} Rc8 {[%emt 0:06:08]} 13. Rfd1 {[%emt 0:01:00]} Nd6 {[%emt 0:00:38]} 14. Nc4 {[%emt 0:00:48]} Nf5 {[%emt 0:06:16]} 15. Qd2 {[%emt 0:04:09]} b5 {[%emt 0:18:04]} 16. Nce5 {[%emt 0:02:25]} Nxe5 {[%emt 0:00:10]} 17. Nxe5 {[%emt 0:00:15]} Bxg2 {[%emt 0:00:07]} 18. Kxg2 {[%emt 0:00:06]} Nd4 {[%emt 0:06:05]} 19. Bxd4 {[%emt 0:02:22]} cxd4 {[%emt 0:04:17]} 20. Rac1 {[%emt 0:01:41]} Qd5+ {[%emt 0:01:45]} 21. Nf3 {[%emt 0:00:08]} g5 {[%emt 0:00:13] aiming for ...g4.} 22. h3 {[%emt 0:02:06]} h5 {[%emt 0:00:59]} 23. Kg1 {[%emt 0:02:15]} g4 {[%emt 0:02:33]} 24. hxg4 {[%emt 0:02:22]} hxg4 {[%emt 0:00:20]} 25. Rxc8 $1 {[%emt 0:01:12]} Rxc8 {[%emt 0:00:05]} 26. Nh2 {[%emt 0:00:07]} Bg5 {[%emt 0:15:05]} 27. Qb2 {[%emt 0:14:13]} (27. Qa5 $11 {remains equal.}) 27... f5 $17 {[%emt 0:00:35]} 28. b4 {[%emt 0:11:25]} (28. Qa3 $17 {was worth a try.}) 28... Rc7 {[%emt 0:05:58]} 29. Ra1 {[%emt 0:05:01]} Rh7 {[%emt 0:00:13]} (29... Kf7 $17 {White must now prevent ...Kg6.} 30. a4 bxa4) 30. Qc2 $1 $15 {[%emt 0:01:25]} Rh3 {[%emt 0:00:22][%cal Oh3g3]} 31. Qc8+ {[%emt 0:00:40]} Kg7 {[%emt 0:00:08][%cal Oh3g3]} 32. Qc7+ {[%emt 0:00:37]} Kg6 {[%emt 0:00:12] And now ...e5 would win.} 33. Qb8 {[%emt 0:01:26]} e5 $40 {[%emt 0:00:37][%cal Oh3g3][%mdl 128] Black attacks.} 34. Rf1 $1 {[%emt 0:06:21]} Rh7 {[%emt 0:26:20]} 35. Qe8+ {[%emt 0:01:39]} Kg7 {[%emt 0:00:08]} 36. Qb8 {[%emt 0:03:05]} Kf6 {[%emt 0:00:34]} 37. Qf8+ {[%emt 0:01:26]} Qf7 {[%emt 0:00:48]} ({Much weaker is} 37... Kg6 38. Qc8 $15) 38. Qd6+ {[%emt 0:00:05]} Qe6 {[%emt 0:00:08]} 39. Qf8+ {[%emt 0:00:02]} Kg6 {[%emt 0:00:08]} 40. a4 {[%emt 0:05:10]} ({White should play} 40. f3 $11) 40... bxa4 {[%emt 0:00:20]} 41. Ra1 {[%emt 0:30:14]} Qc6 {[%emt 0:32:57]} ({Better is} 41... e4 $1 $17 {[%cal Re4d3] ...exd3 is the strong threat.} 42. Qa8 Bf6) 42. b5 $11 {[%emt 0:01:59]} Qxb5 {[%emt 0:01:08] Dancing on a razor blade.} 43. Qg8+ {[%emt 0:00:12]} Rg7 {[%emt 0:00:06]} 44. Qe6+ {[%emt 0:00:37]} Bf6 {[%emt 0:00:01]} 45. Rc1 {[%emt 0:02:37]} (45. f3 $11 {was the only way to keep the balance.}) 45... Qd7 {[%emt 0:00:09]} (45... Re7 $142 $1 {[%cal Re7e6]} 46. Qg8+ Bg7) 46. Qa6 $17 {[%emt 0:00:27]} Qb7 {[%emt 0:02:17]} 47. Qxa4 {[%emt 0:00:06]} Rc7 {[%emt 0:00:50]} (47... Rh7 $6 48. f3 $17) 48. Rxc7 {[%emt 0:05:48]} Qxc7 $11 {[%mdl 4096] Endgame KQB-KQN} 49. Nf1 {[%emt 0:00:22]} Bg5 {[%emt 0:01:29]} 50. Qa2 {[%emt 0:00:54]} Qf7 {[%emt 0:00:32] Active counter play!} 51. Qa6+ {[%emt 0:00:25]} Kg7 {[%emt 0:00:01]} 52. Qb5 {[%emt 0:01:54]} Qe7 {[%emt 0:00:17]} 53. Qd5 {[%emt 0:00:50]} a6 {[%emt 0:00:13]} 54. Qa5 {[%emt 0:00:29]} Qe6 {[%emt 0:00:05]} ({Reject} 54... Qd6 55. Nd2 $15) 55. Nh2 {[%emt 0:03:21]} Kg6 {[%emt 0:00:04]} 56. Nf1 {[%emt 0:00:24]} e4 {[%emt 0:00:00]} 57. Qa4 {[%emt 0:00:00]} (57. dxe4 {with more complications.} fxe4 58. Qc5 e3 59. fxe3 dxe3 60. Nh2) 57... Bf6 {[%emt 0:00:00]} 58. dxe4 {[%emt 0:00:00]} fxe4 {[%emt 0:00:00]} 59. Qc2 {[%emt 0:00:00]} Bg5 {[%emt 0:00:00]} 60. Nh2 {[%emt 0:00:00]} (60. Qc5 $1 $11) 60... Kh5 {[%emt 0:00:00]} (60... a5 $17) 61. Qc7 {[%emt 0:00:00]} Kh6 {[%emt 0:00:00] White should prevent ...d3.} 62. Qc5 {[%emt 0:00:00]} d3 {[%emt 0:00:00]} 63. exd3 {[%emt 0:00:00]} e3 {[%emt 0:00:00]} 64. Qf8+ {[%emt 0:00:00]} Kg6 {[%emt 0:00:00] ( -> ...e2)} 65. fxe3 {[%emt 0:00:00]} Bxe3+ {[%emt 0:00:00]} 66. Kf1 {[%emt 0:00:00]} Bd4 {[%emt 0:00:00] Strongly threatening ...a5.} 67. Qf4 {[%emt 0:00:00][%csl LRd4,LRg4]} Qf5 {[%emt 0:00:00]} 68. Nxg4 $2 {[%emt 0:00:00][%mdl 8192]} (68. Qxf5+ $11 Kxf5 69. Ke2) 68... a5 {[%emt 0:00:00]} (68... Qxf4+ $142 69. gxf4 a5 70. Nh2 a4 71. Nf3 Bc3 72. Nh4+ Kf6 73. Ng2 Bd2 74. Ke2 a3 $1 75. Kd1 a2 $1 76. Kxd2 a1=Q 77. Ne3 Ke6 78. Ke2 Qb2+ 79. Kf3 Qd4 80. Ng4 Qxd3+ 81. Ne3 Kd6 82. Kf2 Qe4 83. Ng2 Kd5 84. Ne3+ Kd4 85. Ng2 Qf5 86. Kg1 Ke4 87. Kf2 Qg4 88. Ne1 Qxf4+ 89. Ke2 Qh2+ 90. Kd1 Qb2 91. Nc2 Kd3 92. Ne1+ Kc3 93. Nc2 Qxc2+ 94. Ke1 Qg2 95. Kd1 Qf1#) 69. Ke2 {[%emt 0:00:00]} Qxf4 {[%emt 0:00:00]} 70. gxf4 {[%emt 0:00:00] [#]} a4 $1 {[%emt 0:00:00] Weighted Error Value: White=0.14 (very precise) /Black=0.15 (very precise)} ({Inferior is} 70... Kf5 71. Ne3+ Bxe3 72. Kxe3 $11) 0-1